[Event "Titled Tuesday Blitz May 4 2021"]
[White "WelshTiger"]
[Black "Rakshitta, Ravi"]
[BlackFideId "25073230"]
[WhiteElo "2472"]
[BlackElo "1873"]
[Result "1-0"]
[Round "08"]
[TimeControl "180+1"]
[Date "2021.05.04"]
[WhiteClock "0:00:22"]
[BlackClock "0:00:02"]

1. d4 {[%clk 0:03:00]}  Nf6 {[%clk 0:02:59]} 2. Nf3 {[%clk 0:03:00]}  g6 {[%clk 0:02:55]} 3. g3 {[%clk 0:02:58]}  Bg7 {[%clk 0:02:55]} 4. Bg2 {[%clk 0:02:59]}  O-O {[%clk 0:02:56]} 5. O-O {[%clk 0:02:59]}  d6 {[%clk 0:02:57]} 6. c3 {[%clk 0:02:54]}  c6 {[%clk 0:02:58]} 7. Re1 {[%clk 0:02:53]}  Nbd7 {[%clk 0:02:58]} 8. Bg5 {[%clk 0:02:48]}  h6 {[%clk 0:02:56]} 9. Bf4 {[%clk 0:02:48]}  Qc7 {[%clk 0:02:55]} 10. Na3 {[%clk 0:02:45]}  e5 {[%clk 0:02:54]} 11. Bc1 {[%clk 0:02:42]}  e4 {[%clk 0:02:53]} 12. Nd2 {[%clk 0:02:42]}  d5 {[%clk 0:02:53]} 13. Nf1 {[%clk 0:02:38]}  Re8 {[%clk 0:02:53]} 14. c4 {[%clk 0:02:37]}  Nf8 {[%clk 0:02:53]} 15. cxd5 {[%clk 0:02:36]}  cxd5 {[%clk 0:02:52]} 16. Bf4 {[%clk 0:02:34]}  Qd8 {[%clk 0:02:51]} 17. Rc1 {[%clk 0:02:33]}  Ne6 {[%clk 0:02:50]} 18. Be5 {[%clk 0:02:31]}  Bd7 {[%clk 0:02:48]} 19. Ne3 {[%clk 0:02:27]}  Rc8 {[%clk 0:02:43]} 20. Qb3 {[%clk 0:02:25]}  Bc6 {[%clk 0:02:33]} 21. Nb5 {[%clk 0:02:23]}  Rf8 {[%clk 0:02:03]} 22. Nxa7 {[%clk 0:02:20]}  Ra8 {[%clk 0:01:55]} 23. Nxc6 {[%clk 0:02:19]}  bxc6 {[%clk 0:01:55]} 24. Rxc6 {[%clk 0:02:20]}  Qa5 {[%clk 0:01:54]} 25. Rb1 {[%clk 0:02:10]}  Nd7 {[%clk 0:01:22]} 26. Bxg7 {[%clk 0:02:08]}  Kxg7 {[%clk 0:01:23]} 27. Qxd5 {[%clk 0:02:01]}  Nf6 {[%clk 0:01:17]} 28. Qxa5 {[%clk 0:01:59]}  Rxa5 {[%clk 0:01:14]} 29. Nc2 {[%clk 0:01:49]}  Rxa2 {[%clk 0:01:11]} 30. d5 {[%clk 0:01:42]}  Nd8 {[%clk 0:01:05]} 31. Rc5 {[%clk 0:01:36]}  Nb7 {[%clk 0:00:58]} 32. Rc7 {[%clk 0:01:29]}  Nd6 {[%clk 0:00:56]} 33. Nd4 {[%clk 0:01:24]}  Rb8 {[%clk 0:00:52]} 34. b4 {[%clk 0:01:23]}  Rd2 {[%clk 0:00:50]} 35. Nc6 {[%clk 0:01:22]}  Ra8 {[%clk 0:00:46]} 36. Rd7 {[%clk 0:01:11]}  Rxd5 {[%clk 0:00:39]} 37. Ne7 {[%clk 0:00:53]}  Rd2 {[%clk 0:00:23]} 38. Rc7 {[%clk 0:00:53]}  Rxe2 {[%clk 0:00:21]} 39. Bf1 {[%clk 0:00:52]}  Rd2 {[%clk 0:00:19]} 40. b5 {[%clk 0:00:31]}  Raa2 {[%clk 0:00:16]} 41. b6 {[%clk 0:00:31]}  Rxf2 {[%clk 0:00:16]} 42. b7 {[%clk 0:00:31]}  Nxb7 {[%clk 0:00:16]} 43. Rbxb7 {[%clk 0:00:31]}  e3 {[%clk 0:00:14]} 44. Nf5+ {[%clk 0:00:30]}  Rxf5 {[%clk 0:00:12]} 45. Rxf7+ {[%clk 0:00:31]}  Kg8 {[%clk 0:00:12]} 46. Bc4 {[%clk 0:00:27]}  Ra1+ {[%clk 0:00:06]} 47. Kg2 {[%clk 0:00:26]}  Rf2+ {[%clk 0:00:06]} 48. Kh3 {[%clk 0:00:27]}  e2 {[%clk 0:00:02]} 49. Rb8+ {[%clk 0:00:22]}  Ne8 {[%clk 0:00:02]} 50. Rxe8# {[%clk 0:00:22]} 1-0


[Site "https://www.chess.com"]

[Event "Titled Tuesday Blitz May 4 2021"]
[White "Wisniowski, Natalie"]
[Black "Alahakoon, Isuru"]
[WhiteFideId "30929261"]
[BlackFideId "9900993"]
[WhiteElo "1702"]
[BlackElo "2062"]
[Result "0-1"]
[Round "08"]
[TimeControl "180+1"]
[Date "2021.05.04"]
[WhiteClock "0:01:38"]
[BlackClock "0:01:35"]

1. d4 {[%clk 0:03:00]}  d5 {[%clk 0:02:58]} 2. c4 {[%clk 0:03:00]}  Nc6 {[%clk 0:02:58]} 3. cxd5 {[%clk 0:02:59]}  Qxd5 {[%clk 0:02:59]} 4. Nf3 {[%clk 0:02:56]}  Bg4 {[%clk 0:02:57]} 5. Nc3 {[%clk 0:02:51]}  Qh5 {[%clk 0:02:57]} 6. Bf4 {[%clk 0:02:37]}  O-O-O {[%clk 0:02:56]} 7. e3 {[%clk 0:02:35]}  e5 {[%clk 0:02:54]} 8. Bg3 {[%clk 0:02:21]}  exd4 {[%clk 0:02:41]} 9. exd4 {[%clk 0:02:19]}  Nxd4 {[%clk 0:02:41]} 10. Qa4 {[%clk 0:02:11]}  Bxf3 {[%clk 0:02:28]} 11. Rd1 {[%clk 0:01:54]}  Bxd1 {[%clk 0:02:23]} 12. Nxd1 {[%clk 0:01:50]}  Nf6 {[%clk 0:01:39]} 13. Qxa7 {[%clk 0:01:38]}  Nc2# {[%clk 0:01:35]} 0-1


[Site "https://www.chess.com"]

[Event "Titled Tuesday Blitz May 4 2021"]
[White "Wu, Christopher"]
[Black "Vignesh, N R"]
[WhiteFideId "2040875"]
[BlackFideId "25012215"]
[WhiteElo "2608"]
[BlackElo "2401"]
[Result "0-1"]
[Round "08"]
[TimeControl "180+1"]
[Date "2021.05.04"]
[WhiteClock "0:00:04"]
[BlackClock "0:00:08"]

1. e4 {[%clk 0:03:00]}  e5 {[%clk 0:02:59]} 2. Nf3 {[%clk 0:03:00]}  Nc6 {[%clk 0:02:58]} 3. Bb5 {[%clk 0:03:01]}  a6 {[%clk 0:02:58]} 4. Ba4 {[%clk 0:03:01]}  d6 {[%clk 0:02:58]} 5. O-O {[%clk 0:02:59]}  Bd7 {[%clk 0:02:58]} 6. c3 {[%clk 0:02:58]}  Nf6 {[%clk 0:02:57]} 7. Re1 {[%clk 0:02:58]}  g6 {[%clk 0:02:57]} 8. d4 {[%clk 0:02:56]}  b5 {[%clk 0:02:56]} 9. Bb3 {[%clk 0:02:56]}  Bg7 {[%clk 0:02:56]} 10. h3 {[%clk 0:02:54]}  O-O {[%clk 0:02:55]} 11. Nbd2 {[%clk 0:02:48]}  Nh5 {[%clk 0:02:54]} 12. Nf1 {[%clk 0:02:47]}  h6 {[%clk 0:02:52]} 13. Be3 {[%clk 0:02:45]}  Kh7 {[%clk 0:02:48]} 14. Qd2 {[%clk 0:02:42]}  Qe7 {[%clk 0:02:41]} 15. Rad1 {[%clk 0:02:36]}  Rad8 {[%clk 0:02:40]} 16. a4 {[%clk 0:02:32]}  Na5 {[%clk 0:02:39]} 17. Ba2 {[%clk 0:02:27]}  Nc4 {[%clk 0:02:34]} 18. Qe2 {[%clk 0:02:06]}  Nxe3 {[%clk 0:02:30]} 19. fxe3 {[%clk 0:02:07]}  c5 {[%clk 0:02:25]} 20. Bd5 {[%clk 0:02:00]}  Nf6 {[%clk 0:02:19]} 21. dxe5 {[%clk 0:01:46]}  dxe5 {[%clk 0:02:09]} 22. Qc2 {[%clk 0:01:44]}  Nxd5 {[%clk 0:02:01]} 23. exd5 {[%clk 0:01:34]}  e4 {[%clk 0:02:01]} 24. N3d2 {[%clk 0:01:33]}  f5 {[%clk 0:01:59]} 25. b3 {[%clk 0:01:22]}  Qd6 {[%clk 0:01:45]} 26. c4 {[%clk 0:01:20]}  b4 {[%clk 0:01:44]} 27. Nh2 {[%clk 0:01:15]}  Be5 {[%clk 0:01:39]} 28. Ndf1 {[%clk 0:01:14]}  Rde8 {[%clk 0:01:38]} 29. Re2 {[%clk 0:01:14]}  h5 {[%clk 0:01:33]} 30. Rf2 {[%clk 0:01:14]}  f4 {[%clk 0:01:24]} 31. Qe2 {[%clk 0:00:33]}  fxe3 {[%clk 0:01:17]} 32. Qxe3 {[%clk 0:00:31]}  Bd4 {[%clk 0:01:12]} 33. Rxd4 {[%clk 0:00:31]}  cxd4 {[%clk 0:01:12]} 34. Qxd4 {[%clk 0:00:32]}  Rxf2 {[%clk 0:01:10]} 35. Qxf2 {[%clk 0:00:32]}  Rf8 {[%clk 0:01:03]} 36. Qe3 {[%clk 0:00:32]}  Bf5 {[%clk 0:00:46]} 37. Nd2 {[%clk 0:00:28]}  Qe5 {[%clk 0:00:42]} 38. Nhf1 {[%clk 0:00:26]}  Rf7 {[%clk 0:00:40]} 39. Ng3 {[%clk 0:00:20]}  Qc3 {[%clk 0:00:36]} 40. Ngf1 {[%clk 0:00:17]}  h4 {[%clk 0:00:32]} 41. Qf2 {[%clk 0:00:15]}  Kg7 {[%clk 0:00:26]} 42. Qe3 {[%clk 0:00:14]}  Qc2 {[%clk 0:00:21]} 43. c5 {[%clk 0:00:14]}  Qd3 {[%clk 0:00:18]} 44. d6 {[%clk 0:00:14]}  Qxe3+ {[%clk 0:00:15]} 45. Nxe3 {[%clk 0:00:14]}  Kf6 {[%clk 0:00:16]} 46. Nd5+ {[%clk 0:00:13]}  Ke6 {[%clk 0:00:16]} 47. Nxb4 {[%clk 0:00:14]}  a5 {[%clk 0:00:15]} 48. Nc2 {[%clk 0:00:13]}  Kd5 {[%clk 0:00:15]} 49. Ne3+ {[%clk 0:00:11]}  Kxc5 {[%clk 0:00:15]} 50. Ndc4 {[%clk 0:00:10]}  Be6 {[%clk 0:00:14]} 51. Kh2 {[%clk 0:00:09]}  Kb4 {[%clk 0:00:12]} 52. Ne5 {[%clk 0:00:08]}  Rf8 {[%clk 0:00:11]} 53. Nxg6 {[%clk 0:00:08]}  Rd8 {[%clk 0:00:11]} 54. Nxh4 {[%clk 0:00:08]}  Bxb3 {[%clk 0:00:10]} 55. Nhf5 {[%clk 0:00:07]}  Kxa4 {[%clk 0:00:09]} 56. g4 {[%clk 0:00:07]}  Kb4 {[%clk 0:00:10]} 57. g5 {[%clk 0:00:07]}  a4 {[%clk 0:00:10]} 58. Nd4 {[%clk 0:00:06]}  Rxd6 {[%clk 0:00:08]} 59. Ndc2+ {[%clk 0:00:05]}  Bxc2 {[%clk 0:00:08]} 60. Nxc2+ {[%clk 0:00:06]}  Kb3 {[%clk 0:00:08]} 61. Na1+ {[%clk 0:00:05]}  Kb2 {[%clk 0:00:08]} 62. h4 {[%clk 0:00:06]}  Kxa1 {[%clk 0:00:08]} 63. h5 {[%clk 0:00:06]}  e3 {[%clk 0:00:09]} 64. Kg2 {[%clk 0:00:06]}  Rd5 {[%clk 0:00:09]} 65. g6 {[%clk 0:00:04]}  Rxh5 {[%clk 0:00:08]} 0-1


[Site "https://www.chess.com"]

[Event "Titled Tuesday Blitz May 4 2021"]
[White "Xiong, Jeffery"]
[Black "Bellahcene, Bilel"]
[WhiteFideId "2047640"]
[BlackFideId "696358"]
[WhiteElo "2724"]
[BlackElo "2493"]
[Result "1/2-1/2"]
[Round "08"]
[TimeControl "180+1"]
[Date "2021.05.04"]
[WhiteClock "0:00:57"]
[BlackClock "0:00:07"]

1. e4 {[%clk 0:03:00]}  c5 {[%clk 0:02:58]} 2. Nf3 {[%clk 0:02:59]}  d6 {[%clk 0:02:58]} 3. Bb5+ {[%clk 0:02:59]}  Nd7 {[%clk 0:02:57]} 4. d4 {[%clk 0:02:57]}  cxd4 {[%clk 0:02:56]} 5. Qxd4 {[%clk 0:02:58]}  a6 {[%clk 0:02:57]} 6. Bxd7+ {[%clk 0:02:58]}  Qxd7 {[%clk 0:02:57]} 7. c4 {[%clk 0:02:56]}  e5 {[%clk 0:02:58]} 8. Qd3 {[%clk 0:02:56]}  f5 {[%clk 0:02:59]} 9. Nc3 {[%clk 0:02:56]}  Nf6 {[%clk 0:02:59]} 10. Bg5 {[%clk 0:02:50]}  fxe4 {[%clk 0:02:58]} 11. Nxe4 {[%clk 0:02:51]}  Nxe4 {[%clk 0:02:58]} 12. Qxe4 {[%clk 0:02:52]}  Qf5 {[%clk 0:02:51]} 13. Qe2 {[%clk 0:02:51]}  Bd7 {[%clk 0:02:38]} 14. Bh4 {[%clk 0:02:40]}  Bc6 {[%clk 0:02:37]} 15. Nd4 {[%clk 0:02:40]}  Qe4 {[%clk 0:02:33]} 16. Nxc6 {[%clk 0:02:41]}  Qxg2 {[%clk 0:02:00]} 17. Nxe5 {[%clk 0:01:52]}  Qxh1+ {[%clk 0:01:26]} 18. Kd2 {[%clk 0:01:51]}  Qxa1 {[%clk 0:01:23]} 19. Kc2 {[%clk 0:01:09]}  Qxa2 {[%clk 0:01:06]} 20. Qg4 {[%clk 0:01:07]}  Qa4+ {[%clk 0:00:30]} 21. Kc1 {[%clk 0:01:07]}  Qa1+ {[%clk 0:00:25]} 22. Kc2 {[%clk 0:01:07]}  Qa4+ {[%clk 0:00:25]} 23. Kb1 {[%clk 0:01:08]}  Be7 {[%clk 0:00:20]} 24. Qe6 {[%clk 0:00:55]}  Qd1+ {[%clk 0:00:18]} 25. Ka2 {[%clk 0:00:55]}  Qa4+ {[%clk 0:00:18]} 26. Kb1 {[%clk 0:00:56]}  Qd1+ {[%clk 0:00:07]} 27. Ka2 {[%clk 0:00:56]}  Qa4+ {[%clk 0:00:07]} 28. Kb1 {[%clk 0:00:57]} 1/2-1/2


[Site "https://www.chess.com"]

[Event "Titled Tuesday Blitz May 4 2021"]
[White "Yilmaz, Mustafa"]
[Black "Fier, Alexandr"]
[WhiteFideId "6302718"]
[BlackFideId "2107139"]
[WhiteElo "2518"]
[BlackElo "2569"]
[Result "1-0"]
[Round "08"]
[TimeControl "180+1"]
[Date "2021.05.04"]
[WhiteClock "0:00:04"]
[BlackClock "0:00:04"]

1. d4 {[%clk 0:03:00]}  Nf6 {[%clk 0:02:55]} 2. c4 {[%clk 0:03:00]}  c5 {[%clk 0:02:56]} 3. d5 {[%clk 0:03:00]}  e6 {[%clk 0:02:56]} 4. Nc3 {[%clk 0:03:00]}  exd5 {[%clk 0:02:57]} 5. cxd5 {[%clk 0:03:01]}  d6 {[%clk 0:02:57]} 6. e4 {[%clk 0:03:02]}  g6 {[%clk 0:02:58]} 7. f4 {[%clk 0:03:02]}  Bg7 {[%clk 0:02:58]} 8. Bb5+ {[%clk 0:03:02]}  Nfd7 {[%clk 0:02:59]} 9. a4 {[%clk 0:03:01]}  O-O {[%clk 0:02:58]} 10. Nf3 {[%clk 0:03:02]}  Na6 {[%clk 0:02:56]} 11. O-O {[%clk 0:03:01]}  Nb4 {[%clk 0:02:57]} 12. Re1 {[%clk 0:02:55]}  a6 {[%clk 0:02:57]} 13. Bf1 {[%clk 0:02:54]}  Re8 {[%clk 0:02:57]} 14. Bd2 {[%clk 0:02:44]}  b6 {[%clk 0:02:44]} 15. h3 {[%clk 0:02:39]}  Bb7 {[%clk 0:02:40]} 16. Qb3 {[%clk 0:02:35]}  Nf6 {[%clk 0:02:39]} 17. Rad1 {[%clk 0:02:21]}  Nh5 {[%clk 0:02:23]} 18. Bc1 {[%clk 0:02:13]}  Bh6 {[%clk 0:02:08]} 19. e5 {[%clk 0:02:00]}  Bxf4 {[%clk 0:02:05]} 20. Bxf4 {[%clk 0:01:44]}  Nxf4 {[%clk 0:02:05]} 21. Qc4 {[%clk 0:01:45]}  dxe5 {[%clk 0:02:02]} 22. Nxe5 {[%clk 0:01:40]}  Qg5 {[%clk 0:02:01]} 23. Nf3 {[%clk 0:01:29]}  Qg3 {[%clk 0:02:01]} 24. Kh1 {[%clk 0:00:53]}  Rxe1 {[%clk 0:01:55]} 25. Rxe1 {[%clk 0:00:42]}  Bxd5 {[%clk 0:01:41]} 26. Nxd5 {[%clk 0:00:39]}  Nbxd5 {[%clk 0:01:42]} 27. a5 {[%clk 0:00:36]}  bxa5 {[%clk 0:01:20]} 28. Qxc5 {[%clk 0:00:37]}  Nf6 {[%clk 0:01:16]} 29. Qc6 {[%clk 0:00:35]}  Rb8 {[%clk 0:00:28]} 30. Qxf6 {[%clk 0:00:34]}  Nh5 {[%clk 0:00:29]} 31. Qd4 {[%clk 0:00:27]}  Qc7 {[%clk 0:00:27]} 32. Bxa6 {[%clk 0:00:22]}  Ng3+ {[%clk 0:00:26]} 33. Kg1 {[%clk 0:00:23]}  Nf5 {[%clk 0:00:27]} 34. Qf2 {[%clk 0:00:22]}  Qd6 {[%clk 0:00:23]} 35. Bc4 {[%clk 0:00:22]}  Qb4 {[%clk 0:00:22]} 36. Ne5 {[%clk 0:00:20]}  Rb7 {[%clk 0:00:20]} 37. Bxf7+ {[%clk 0:00:19]}  Kg7 {[%clk 0:00:18]} 38. Bd5 {[%clk 0:00:17]}  Rc7 {[%clk 0:00:17]} 39. Nd3 {[%clk 0:00:16]}  Qd6 {[%clk 0:00:16]} 40. Be4 {[%clk 0:00:16]}  Nd4 {[%clk 0:00:15]} 41. Rf1 {[%clk 0:00:16]}  Rc2 {[%clk 0:00:14]} 42. Qf7+ {[%clk 0:00:15]}  Kh6 {[%clk 0:00:15]} 43. Qf8+ {[%clk 0:00:10]}  Qxf8 {[%clk 0:00:15]} 44. Rxf8 {[%clk 0:00:11]}  Re2 {[%clk 0:00:15]} 45. Bd5 {[%clk 0:00:10]}  Rd2 {[%clk 0:00:15]} 46. Be4 {[%clk 0:00:09]}  Re2 {[%clk 0:00:16]} 47. Ba8 {[%clk 0:00:08]}  Rd2 {[%clk 0:00:16]} 48. Ne5 {[%clk 0:00:06]}  Rxb2 {[%clk 0:00:14]} 49. Rf7 {[%clk 0:00:06]}  Nf5 {[%clk 0:00:13]} 50. Ng4+ {[%clk 0:00:06]}  Kg5 {[%clk 0:00:13]} 51. Rxh7 {[%clk 0:00:06]}  Ng3 {[%clk 0:00:14]} 52. Ra7 {[%clk 0:00:06]}  Kh4 {[%clk 0:00:13]} 53. Bf3 {[%clk 0:00:05]}  Ra2 {[%clk 0:00:13]} 54. Rh7+ {[%clk 0:00:03]}  Kg5 {[%clk 0:00:13]} 55. h4+ {[%clk 0:00:04]}  Kf4 {[%clk 0:00:13]} 56. Rf7+ {[%clk 0:00:05]}  Nf5 {[%clk 0:00:13]} 57. h5 {[%clk 0:00:05]}  Kg3 {[%clk 0:00:14]} 58. Kf1 {[%clk 0:00:04]}  Ra1+ {[%clk 0:00:12]} 59. Ke2 {[%clk 0:00:04]}  Nd4+ {[%clk 0:00:13]} 60. Ke3 {[%clk 0:00:04]}  Nxf3 {[%clk 0:00:09]} 61. gxf3 {[%clk 0:00:05]}  gxh5 {[%clk 0:00:09]} 62. Ne5 {[%clk 0:00:05]}  Re1+ {[%clk 0:00:10]} 63. Kd4 {[%clk 0:00:05]}  h4 {[%clk 0:00:10]} 64. Rg7+ {[%clk 0:00:06]}  Kh3 {[%clk 0:00:08]} 65. f4 {[%clk 0:00:06]}  Rf1 {[%clk 0:00:07]} 66. Ke4 {[%clk 0:00:06]}  a4 {[%clk 0:00:08]} 67. f5 {[%clk 0:00:05]}  a3 {[%clk 0:00:08]} 68. Ra7 {[%clk 0:00:05]}  Re1+ {[%clk 0:00:08]} 69. Kf4 {[%clk 0:00:05]}  Rf1+ {[%clk 0:00:08]} 70. Kg5 {[%clk 0:00:06]}  Rg1+ {[%clk 0:00:08]} 71. Kh5 {[%clk 0:00:06]}  Rg3 {[%clk 0:00:08]} 72. f6 {[%clk 0:00:06]}  Re3 {[%clk 0:00:08]} 73. Ng6 {[%clk 0:00:06]}  Rf3 {[%clk 0:00:08]} 74. Kg5 {[%clk 0:00:06]}  Kg3 {[%clk 0:00:05]} 75. f7 {[%clk 0:00:05]}  Rxf7 {[%clk 0:00:04]} 76. Rxf7 {[%clk 0:00:05]}  h3 {[%clk 0:00:04]} 77. Nh4 {[%clk 0:00:04]}  h2 {[%clk 0:00:04]} 78. Rf3# {[%clk 0:00:04]} 1-0


[Site "https://www.chess.com"]

[Event "Titled Tuesday Blitz May 4 2021"]
[White "Yoo, Christopher Woojin"]
[Black "Martirosyan, Haik M."]
[WhiteFideId "30909694"]
[BlackFideId "13306553"]
[WhiteElo "2009"]
[BlackElo "2597"]
[Result "1/2-1/2"]
[Round "08"]
[TimeControl "180+1"]
[Date "2021.05.04"]
[WhiteClock "0:00:10"]
[BlackClock "0:00:12"]

1. d4 {[%clk 0:03:00]}  Nf6 {[%clk 0:02:59]} 2. Nf3 {[%clk 0:02:59]}  d5 {[%clk 0:02:58]} 3. c4 {[%clk 0:02:59]}  c6 {[%clk 0:02:58]} 4. cxd5 {[%clk 0:02:53]}  cxd5 {[%clk 0:02:59]} 5. Nc3 {[%clk 0:02:52]}  Nc6 {[%clk 0:02:57]} 6. Bf4 {[%clk 0:02:50]}  Bf5 {[%clk 0:02:58]} 7. Rc1 {[%clk 0:02:48]}  e6 {[%clk 0:02:56]} 8. e3 {[%clk 0:02:45]}  Be7 {[%clk 0:02:56]} 9. Bb5 {[%clk 0:02:38]}  O-O {[%clk 0:02:52]} 10. O-O {[%clk 0:02:34]}  Rc8 {[%clk 0:02:44]} 11. Qe2 {[%clk 0:02:18]}  a6 {[%clk 0:02:41]} 12. Bxc6 {[%clk 0:02:17]}  Rxc6 {[%clk 0:02:41]} 13. Ne5 {[%clk 0:02:17]}  Rc8 {[%clk 0:02:39]} 14. f3 {[%clk 0:02:09]}  b5 {[%clk 0:02:35]} 15. Rfd1 {[%clk 0:02:03]}  h6 {[%clk 0:02:30]} 16. e4 {[%clk 0:02:03]}  Bh7 {[%clk 0:02:28]} 17. a3 {[%clk 0:01:55]}  b4 {[%clk 0:02:15]} 18. axb4 {[%clk 0:01:51]}  Bxb4 {[%clk 0:02:16]} 19. exd5 {[%clk 0:01:44]}  Nxd5 {[%clk 0:01:58]} 20. Nxd5 {[%clk 0:01:43]}  Qxd5 {[%clk 0:01:59]} 21. Rxc8 {[%clk 0:01:37]}  Rxc8 {[%clk 0:02:00]} 22. Qxa6 {[%clk 0:01:37]}  Ra8 {[%clk 0:01:36]} 23. Qc6 {[%clk 0:01:35]}  Qxc6 {[%clk 0:01:11]} 24. Nxc6 {[%clk 0:01:36]}  Bf8 {[%clk 0:01:11]} 25. b4 {[%clk 0:01:35]}  Bc2 {[%clk 0:01:10]} 26. Rc1 {[%clk 0:01:30]}  Ba4 {[%clk 0:01:11]} 27. Bd2 {[%clk 0:01:28]}  Kh7 {[%clk 0:01:03]} 28. Ne5 {[%clk 0:01:23]}  f6 {[%clk 0:01:03]} 29. Nd3 {[%clk 0:01:23]}  Rd8 {[%clk 0:01:03]} 30. Bc3 {[%clk 0:01:23]}  e5 {[%clk 0:01:01]} 31. Nc5 {[%clk 0:01:17]}  exd4 {[%clk 0:01:01]} 32. Nxa4 {[%clk 0:01:17]}  dxc3 {[%clk 0:01:01]} 33. b5 {[%clk 0:01:16]}  Bb4 {[%clk 0:00:43]} 34. Nxc3 {[%clk 0:01:15]}  Rd2 {[%clk 0:00:36]} 35. Ne4 {[%clk 0:01:03]}  Rb2 {[%clk 0:00:36]} 36. h4 {[%clk 0:00:58]}  h5 {[%clk 0:00:32]} 37. Kh2 {[%clk 0:00:53]}  Kg6 {[%clk 0:00:32]} 38. Kh3 {[%clk 0:00:50]}  Ba5 {[%clk 0:00:30]} 39. Rc5 {[%clk 0:00:47]}  Bb6 {[%clk 0:00:30]} 40. Rd5 {[%clk 0:00:47]}  Rb1 {[%clk 0:00:30]} 41. g4 {[%clk 0:00:47]}  hxg4+ {[%clk 0:00:29]} 42. fxg4 {[%clk 0:00:45]}  Rb3+ {[%clk 0:00:29]} 43. Kg2 {[%clk 0:00:45]}  Re3 {[%clk 0:00:30]} 44. h5+ {[%clk 0:00:44]}  Kf7 {[%clk 0:00:28]} 45. Rd7+ {[%clk 0:00:42]}  Ke6 {[%clk 0:00:23]} 46. Rd6+ {[%clk 0:00:41]}  Ke5 {[%clk 0:00:23]} 47. Rxb6 {[%clk 0:00:41]}  Rxe4 {[%clk 0:00:23]} 48. Kf3 {[%clk 0:00:39]}  Rb4 {[%clk 0:00:21]} 49. Rb7 {[%clk 0:00:38]}  Rb3+ {[%clk 0:00:20]} 50. Kg2 {[%clk 0:00:38]}  Kf4 {[%clk 0:00:13]} 51. Rxg7 {[%clk 0:00:35]}  Rb2+ {[%clk 0:00:14]} 52. Kh3 {[%clk 0:00:35]}  Rb3+ {[%clk 0:00:13]} 53. Kg2 {[%clk 0:00:34]}  Rb2+ {[%clk 0:00:13]} 54. Kf1 {[%clk 0:00:33]}  Rxb5 {[%clk 0:00:12]} 55. h6 {[%clk 0:00:33]}  Kf3 {[%clk 0:00:13]} 56. Ke1 {[%clk 0:00:31]}  Rb2 {[%clk 0:00:14]} 57. Rg6 {[%clk 0:00:21]}  Rh2 {[%clk 0:00:14]} 58. Kd1 {[%clk 0:00:21]}  Kf4 {[%clk 0:00:14]} 59. Kc1 {[%clk 0:00:19]}  Kf3 {[%clk 0:00:12]} 60. Kd1 {[%clk 0:00:16]}  Kf4 {[%clk 0:00:12]} 61. Ke1 {[%clk 0:00:16]}  Kf3 {[%clk 0:00:12]} 62. Kd1 {[%clk 0:00:10]} 1/2-1/2


[Site "https://www.chess.com"]

[Event "Titled Tuesday Blitz May 4 2021"]
[White "Zverev, Lev"]
[Black "Csonka, Balazs"]
[WhiteFideId "24250775"]
[BlackFideId "742910"]
[WhiteElo "2107"]
[BlackElo "2404"]
[Result "1-0"]
[Round "08"]
[TimeControl "180+1"]
[Date "2021.05.04"]
[WhiteClock "0:00:10"]
[BlackClock "0:00:02"]

1. e4 {[%clk 0:03:00]}  c5 {[%clk 0:02:59]} 2. Nf3 {[%clk 0:03:00]}  d6 {[%clk 0:02:59]} 3. d4 {[%clk 0:02:59]}  cxd4 {[%clk 0:03:00]} 4. Nxd4 {[%clk 0:02:59]}  Nf6 {[%clk 0:03:01]} 5. Nc3 {[%clk 0:02:58]}  a6 {[%clk 0:03:01]} 6. Bg5 {[%clk 0:02:57]}  e6 {[%clk 0:03:01]} 7. f4 {[%clk 0:02:57]}  Be7 {[%clk 0:02:55]} 8. Qf3 {[%clk 0:02:56]}  Qc7 {[%clk 0:02:55]} 9. O-O-O {[%clk 0:02:55]}  Nbd7 {[%clk 0:02:52]} 10. g4 {[%clk 0:02:53]}  h6 {[%clk 0:02:44]} 11. Bxf6 {[%clk 0:02:52]}  Bxf6 {[%clk 0:02:43]} 12. h4 {[%clk 0:02:48]}  Nb6 {[%clk 0:02:36]} 13. g5 {[%clk 0:02:45]}  Bxd4 {[%clk 0:02:34]} 14. Rxd4 {[%clk 0:02:44]}  Qc5 {[%clk 0:02:32]} 15. Rd1 {[%clk 0:02:40]}  Bd7 {[%clk 0:02:29]} 16. Qd3 {[%clk 0:02:24]}  hxg5 {[%clk 0:01:58]} 17. fxg5 {[%clk 0:02:25]}  Ke7 {[%clk 0:01:19]} 18. Be2 {[%clk 0:02:06]}  Bc6 {[%clk 0:01:09]} 19. Kb1 {[%clk 0:02:04]}  Nd7 {[%clk 0:01:08]} 20. Qg3 {[%clk 0:01:59]}  b5 {[%clk 0:01:00]} 21. Bf3 {[%clk 0:01:58]}  Ne5 {[%clk 0:00:44]} 22. Bg2 {[%clk 0:01:55]}  Rac8 {[%clk 0:00:41]} 23. Rc1 {[%clk 0:01:38]}  Nc4 {[%clk 0:00:37]} 24. Ne2 {[%clk 0:01:31]}  Bxe4 {[%clk 0:00:29]} 25. Bxe4 {[%clk 0:01:27]}  Nd2+ {[%clk 0:00:29]} 26. Ka1 {[%clk 0:01:28]}  Nxe4 {[%clk 0:00:30]} 27. Qf4 {[%clk 0:01:29]}  Qe5 {[%clk 0:00:28]} 28. Qf3 {[%clk 0:01:25]}  Rc4 {[%clk 0:00:17]} 29. Rhf1 {[%clk 0:01:23]}  f5 {[%clk 0:00:14]} 30. Nf4 {[%clk 0:01:19]}  Kf7 {[%clk 0:00:09]} 31. Nd3 {[%clk 0:01:16]}  Qg3 {[%clk 0:00:06]} 32. Qe2 {[%clk 0:01:08]}  Qxh4 {[%clk 0:00:06]} 33. g6+ {[%clk 0:01:07]}  Kxg6 {[%clk 0:00:04]} 34. Nf4+ {[%clk 0:01:07]}  Kf7 {[%clk 0:00:05]} 35. Qg2 {[%clk 0:00:59]}  g5 {[%clk 0:00:04]} 36. Ne2 {[%clk 0:00:56]}  Qh2 {[%clk 0:00:03]} 37. Qf3 {[%clk 0:00:53]}  Qe5 {[%clk 0:00:03]} 38. Rh1 {[%clk 0:00:47]}  Rxh1 {[%clk 0:00:02]} 39. Qxh1 {[%clk 0:00:48]}  d5 {[%clk 0:00:02]} 40. Qh7+ {[%clk 0:00:48]}  Qg7 {[%clk 0:00:02]} 41. Qh5+ {[%clk 0:00:49]}  Qg6 {[%clk 0:00:02]} 42. Qh8 {[%clk 0:00:48]}  Qg7 {[%clk 0:00:02]} 43. Qd8 {[%clk 0:00:47]}  Kg6 {[%clk 0:00:02]} 44. Rg1 {[%clk 0:00:43]}  Qc7 {[%clk 0:00:02]} 45. Qg8+ {[%clk 0:00:41]}  Kf6 {[%clk 0:00:03]} 46. Qf8+ {[%clk 0:00:38]}  Ke5 {[%clk 0:00:02]} 47. Qh8+ {[%clk 0:00:36]}  Kd6 {[%clk 0:00:02]} 48. Qf8+ {[%clk 0:00:35]}  Kc6 {[%clk 0:00:02]} 49. Qe8+ {[%clk 0:00:34]}  Qd7 {[%clk 0:00:02]} 50. Qa8+ {[%clk 0:00:34]}  Qb7 {[%clk 0:00:02]} 51. Qe8+ {[%clk 0:00:33]}  Qd7 {[%clk 0:00:03]} 52. Qa8+ {[%clk 0:00:32]}  Kb6 {[%clk 0:00:03]} 53. Qb8+ {[%clk 0:00:28]}  Qb7 {[%clk 0:00:04]} 54. Qd8+ {[%clk 0:00:27]}  Qc7 {[%clk 0:00:04]} 55. Qe8 {[%clk 0:00:24]}  Rxc2 {[%clk 0:00:04]} 56. Qxe6+ {[%clk 0:00:13]}  Qc6 {[%clk 0:00:04]} 57. Qe5 {[%clk 0:00:13]}  Rxe2 {[%clk 0:00:04]} 58. Qb8+ {[%clk 0:00:13]}  Ka5 {[%clk 0:00:04]} 59. Qd8+ {[%clk 0:00:12]}  Ka4 {[%clk 0:00:02]} 60. Qf8 {[%clk 0:00:12]}  b4 {[%clk 0:00:02]} 61. a3 {[%clk 0:00:10]}  bxa3 {[%clk 0:00:02]} 62. Qxa3+ {[%clk 0:00:11]}  Kb5 {[%clk 0:00:02]} 63. Qb3+ {[%clk 0:00:11]}  Kc5 {[%clk 0:00:02]} 64. Rc1+ {[%clk 0:00:10]}  Kd6 {[%clk 0:00:02]} 65. Rxc6+ {[%clk 0:00:11]}  Kxc6 {[%clk 0:00:03]} 66. Qa4+ {[%clk 0:00:09]}  Kc7 {[%clk 0:00:03]} 67. Qa5+ {[%clk 0:00:09]}  Kd7 {[%clk 0:00:03]} 68. Qxd5+ {[%clk 0:00:08]}  Ke7 {[%clk 0:00:02]} 69. Qb7+ {[%clk 0:00:08]}  Kf6 {[%clk 0:00:02]} 70. Qxa6+ {[%clk 0:00:09]}  Kg7 {[%clk 0:00:02]} 71. Qxe2 {[%clk 0:00:10]} 1-0


[Site "https://www.chess.com"]